fUST/lending_fUST_20250522
["ID","MTS","AMOUNT","RATE_DAILY","PERIOD"]
[361861131,1747848653722,-459.66,0.000256,31]
[361861132,1747848653735,-459.66,0.000256,31]
[361861133,1747848653859,-459.66,0.000256,31]
[361861134,1747848653874,-160.0,0.000256,5]
[361861135,1747848653885,-500.0,0.00025608,2]
[361861136,1747848653896,-151.0,0.00025637,7]
[361861137,1747848653907,-8203695.86375712,0.00025644,20]
[361861138,1747848654072,-675.45614369,0.00025644,20]
[361861139,1747848654084,-43884.93361614,0.00025644,20]
[361861140,1747848654751,-500.0,0.0002083,2]
[361861141,1747848654762,-500.0,0.0002083,2]
[361861142,1747848654777,-264.75,0.0002083,2]
[361861143,1747848654790,-48.05268297,0.0002083,2]
[361861144,1747848654800,-500.0,0.0002083,2]
[361861145,1747848654810,-500.0,0.0002083,2]
[361861146,1747848654820,-500.0,0.0002083,2]
[361861147,1747848654830,-500.0,0.0002083,2]
[361861148,1747848654839,-500.0,0.0002083,2]
[361861149,1747848654849,-500.0,0.0002083,2]
[361861150,1747848654860,-500.0,0.0002083,2]
[361861151,1747848654870,-500.0,0.0002083,2]
[361861152,1747848654880,-500.0,0.0002083,2]
[361861153,1747848654889,-500.0,0.0002083,2]
[361861154,1747848654898,-500.0,0.0002083,2]
[361861155,1747848654908,-500.0,0.0002083,2]
[361861156,1747848654917,-500.0,0.0002083,2]
[361861157,1747848654927,-500.0,0.0002083,2]
[361861158,1747848654936,-500.0,0.0002083,2]
[361861159,1747848654950,-500.0,0.0002083,2]
[361861160,1747848654960,-256.02594095,0.0002083,2]
[361861161,1747848654970,-500.0,0.0002083,2]
[361861162,1747848654980,-500.0,0.0002083,2]
[361861163,1747848654989,-500.0,0.0002083,2]
[361861164,1747848654998,-500.0,0.0002083,2]
[361861165,1747848655008,-490.5752157,0.0002083,2]
[361861166,1747848655020,-9.4247843,0.0002083,2]
[361861167,1747848655030,-500.0,0.0002083,2]
[361861168,1747848655039,-500.0,0.0002083,2]
[361861169,1747848655048,-500.0,0.0002083,2]
[361861170,1747848655057,-500.0,0.0002083,2]
[361861171,1747848655066,-500.0,0.0002083,2]
[361861172,1747848655076,-500.0,0.0002083,2]
[361861173,1747848655086,-500.0,0.0002083,2]
[361861174,1747848655096,-500.0,0.0002083,2]
[361861175,1747848655105,-500.0,0.0002083,2]
[361861176,1747848655114,-500.0,0.0002083,2]
[361861177,1747848655124,-500.0,0.0002083,2]
[361861178,1747848655133,-500.0,0.0002083,2]
[361861179,1747848655143,-500.0,0.0002083,2]
[361861180,1747848655152,-500.0,0.0002083,2]
[361861181,1747848655161,-500.0,0.0002083,2]
[361861182,1747848655170,-500.0,0.0002083,2]
[361861183,1747848655180,-500.0,0.0002083,2]
[361861184,1747848655189,-500.0,0.0002083,2]
[361861185,1747848655204,-500.0,0.0002083,2]
[361861186,1747848655213,-500.0,0.0002083,2]
[361861187,1747848655223,-500.0,0.0002083,2]
[361861188,1747848655232,-500.0,0.0002083,2]
[361861189,1747848655241,-542.64873314,0.0002083,2]
[361861190,1747848655251,-500.0,0.0002083,2]
[361861191,1747848655261,-500.0,0.0002083,2]
[361861192,1747848655270,-500.0,0.0002083,2]
[361861193,1747848655279,-500.0,0.0002083,2]
[361861194,1747848655289,-160.0,0.00020946,2]
[361861195,1747848655300,-151.0,0.00021917,2]
[361861196,1747848655310,-250.555973,0.00021917,2]
[361861197,1747848655320,-430.0,0.00021917,2]
[361861198,1747848655329,-151.0,0.00022191,7]
[361861199,1747848655341,-151.0,0.00022191,7]
[361861200,1747848655351,-276.191506,0.00023,7]
[361861201,1747848655360,-576.87,0.00024109,2]
[361861202,1747848655370,-707.0,0.0002421,2]
[361861203,1747848655379,-576.87,0.00024383,2]
[361861204,1747848655389,-576.87,0.00024657,2]
[361861205,1747848655399,-500.0,0.00024658,2]
[361861206,1747848655409,-373.08133744,0.00024658,2]
[361861207,1747848655421,-126.91866256,0.00024658,2]
[361861208,1747848655431,-500.0,0.00024658,2]
[361861209,1747848655441,-576.87,0.00024931,2]
[361861210,1747848655457,-576.87,0.00025205,2]
[361861211,1747848655467,-576.87,0.00025479,2]
[361861212,1747848655477,-15553.88381364,0.00025644,20]
[361861213,1747848655488,-10736.13538477,0.00025644,20]
[361861214,1747848655499,-293.999998,0.00025644,20]
[361861215,1747848655515,-59055.0183376,0.00025644,20]
[361861216,1747848655594,-762.51127105,0.00020736,2]
[361861217,1747848655606,-249.993024,0.00020736,2]
[361861218,1747848655617,-3987.49570495,0.00020736,2]
[361861219,1747848655628,-189.46946149,0.0002083,2]
[361861220,1747848655638,-430.0,0.00021917,2]
[361861221,1747848655647,-320031.87859049,0.00025644,20]
[361861222,1747848655767,-23653.25068511,0.00025644,20]
[361861223,1747848655805,-430.0,0.00021917,2]
[361861224,1747848655817,-7808.65838339,0.00025644,20]
[361861225,1747848655829,-60789.01598553,0.00025644,20]
[361861226,1747848655840,-591.575,0.00025644,20]
[361861227,1747848655853,-2130.2309958,0.00025644,20]
[361861228,1747848655865,-317907.97710561,0.00025644,20]
[361861229,1747848655897,-48333.31727229,0.00025644,20]
[361861230,1747848655939,-1128.53324729,0.00022191,2]
[361861231,1747848655955,-703.23,0.00022191,2]
[361861239,1747848896682,-1566.0,0.00016735,2]
[361861245,1747849544437,210.595305,0.00013699,2]
[361861249,1747849639188,-160.0,0.00016904,3]
[361861250,1747849639219,-5000.0,0.00019516,2]
[361861251,1747849639245,-173.993769,0.00020052,2]
[361861252,1747849639271,-210.595305,0.00020187,2]
[361861253,1747849639296,-328.534841,0.00020316,2]
[361861254,1747849639321,-300.0,0.00020593,2]
[361861255,1747849639344,-212.41679935,0.00020594,2]
[361861256,1747849639368,-894.64583333,0.00020594,2]
[361861257,1747849639391,-422.71322487,0.00020594,2]
[361861258,1747849639416,-160.0,0.00020594,2]
[361861259,1747849639438,-300.0,0.00020597,2]
[361861260,1747849639465,-300.0,0.00020597,2]
[361861261,1747849639489,-160.0,0.00020706,2]
[361861262,1747849639516,-355.79909257,0.000209,4]
[361861263,1747849639541,-355.79909247,0.00021072,4]
[361861264,1747849639565,-355.79909247,0.00021245,4]
[361861265,1747849639590,-355.79909247,0.00021417,5]
[361861266,1747849639613,-355.79909247,0.0002159,5]
[361861267,1747849639636,-355.79909247,0.00021762,5]
[361861268,1747849639657,-500.0,0.00021808,2]
[361861269,1747849639680,-500.0,0.00021914,2]
[361861270,1747849639706,-500.0,0.00021914,2]
[361861271,1747849639728,-500.0,0.00021914,2]
[361861272,1747849639751,-500.0,0.00021914,2]
[361861273,1747849639776,-195.11399344,0.00021914,2]
[361861274,1747849639801,-500.0,0.00021914,2]
[361861275,1747849639829,-500.0,0.00021914,2]
[361861276,1747849639852,-500.0,0.00021914,2]
[361861277,1747849639876,-500.0,0.00021914,2]
[361861278,1747849639899,-500.0,0.00021914,2]
[361861279,1747849639923,-500.0,0.00021914,2]
[361861280,1747849639953,-500.0,0.00021914,2]
[361861281,1747849639978,-500.0,0.00021914,2]
[361861282,1747849640003,-500.0,0.00021914,2]
[361861283,1747849640026,-500.0,0.00021914,2]
[361861284,1747849640049,-500.0,0.00021914,2]
[361861285,1747849640074,-500.0,0.00021914,2]
[361861286,1747849640099,-500.0,0.00021914,2]
[361861287,1747849640124,-500.0,0.00021914,2]
[361861288,1747849640151,-500.0,0.00021914,2]
[361861289,1747849640177,-500.0,0.00021914,2]
[361861290,1747849640209,-500.0,0.00021914,2]
[361861291,1747849640235,-500.0,0.00021914,2]
[361861292,1747849640416,-500.0,0.00021914,2]
[361861293,1747849640440,-500.0,0.00021914,2]
[361861294,1747849640470,-500.0,0.00021914,2]
[361861295,1747849640494,-500.0,0.00021914,2]
[361861296,1747849640521,-500.0,0.00021914,2]
[361861297,1747849640544,-500.0,0.00021914,2]
[361861298,1747849640567,-500.0,0.00021914,2]
[361861299,1747849640592,-500.0,0.00021914,2]
[361861300,1747849640619,-500.0,0.00021914,2]
[361861301,1747849640644,-500.0,0.00021914,2]
[361861302,1747849640669,-500.0,0.00021914,2]
[361861303,1747849640692,-199.07124312,0.00021914,2]
[361861304,1747849640719,-500.0,0.00021914,2]
[361861305,1747849640741,-500.0,0.00021914,2]
[361861306,1747849640764,-500.0,0.00021914,2]
[361861307,1747849640788,-500.0,0.00021914,2]
[361861308,1747849640812,-500.0,0.00021914,2]
[361861309,1747849640834,-500.0,0.00021914,2]
[361861310,1747849640859,-500.0,0.00021914,2]
[361861311,1747849640880,-178.43104675,0.00021914,2]
[361861312,1747849640902,-1028.45510711,0.00021914,2]
[361861313,1747849640924,-1028.45510711,0.00021914,2]
[361861314,1747849640955,-1028.45510711,0.00021914,2]
[361861315,1747849640977,-1028.45510711,0.00021914,2]
[361861316,1747849641001,-1028.45510711,0.00021914,2]
[361861317,1747849641024,-1028.45510711,0.00021914,2]
[361861318,1747849641047,-1028.45510711,0.00021914,2]
[361861319,1747849641070,-1028.45510711,0.00021914,2]
[361861320,1747849641095,-1028.45510711,0.00021914,2]
[361861321,1747849641118,-1028.45510711,0.00021914,2]
[361861322,1747849641141,-1028.45510711,0.00021914,2]
[361861323,1747849641168,-1028.45510711,0.00021914,2]
[361861324,1747849641200,-1028.45510711,0.00021914,2]
[361861325,1747849641227,-1028.45510711,0.00021914,2]
[361861326,1747849641254,-1028.45510711,0.00021914,2]
[361861327,1747849641279,-1028.45510711,0.00021914,2]
[361861328,1747849641304,-1028.45510711,0.00021914,2]
[361861329,1747849641329,-1028.45510711,0.00021914,2]
[361861330,1747849641354,-1028.45510711,0.00021914,2]
[361861331,1747849641379,-1028.45510711,0.00021914,2]
[361861332,1747849641403,-1028.45510711,0.00021914,2]
[361861333,1747849641427,-1028.45510711,0.00021914,2]
[361861334,1747849641455,-1028.45510711,0.00021914,2]
[361861335,1747849641480,-1028.45510711,0.00021914,2]
[361861336,1747849641508,-1028.45510711,0.00021914,2]
[361861337,1747849641533,-1028.45510711,0.00021914,2]
[361861338,1747849641557,-1028.45510711,0.00021914,2]
[361861339,1747849641580,-1028.45510711,0.00021914,2]
[361861340,1747849641604,-1028.45510711,0.00021914,2]
[361861341,1747849641628,-1028.45510711,0.00021914,2]
[361861342,1747849641652,-1028.45510711,0.00021914,2]
[361861343,1747849641676,-1028.45510711,0.00021914,2]
[361861344,1747849641703,-1028.45510711,0.00021914,2]
[361861345,1747849641726,-1028.45510711,0.00021914,2]
[361861346,1747849641748,-1028.45510711,0.00021914,2]
[361861347,1747849641772,-1028.45510711,0.00021914,2]
[361861348,1747849641796,-1028.45510711,0.00021914,2]
[361861349,1747849641820,-1002.74372942,0.00021914,2]
[361861350,1747849641844,-1002.74372942,0.00021914,2]
[361861351,1747849641868,-1002.74372942,0.00021914,2]
[361861352,1747849641892,-1002.74372942,0.00021914,2]
[361861353,1747849641915,-1002.74372942,0.00021914,2]
[361861354,1747849641939,-1002.74372942,0.00021914,2]
[361861355,1747849641970,-1002.74372942,0.00021914,2]
[361861356,1747849641994,-1002.74372942,0.00021914,2]
[361861357,1747849642018,-1002.74372942,0.00021914,2]
[361861358,1747849642041,-1002.74372942,0.00021914,2]
[361861359,1747849642065,-1002.74372942,0.00021914,2]
[361861360,1747849642092,-1002.74372942,0.00021914,2]
[361861361,1747849642114,-500.0,0.00021916,2]
[361861362,1747849642136,-388.03453171,0.00021916,2]
[361861363,1747849642161,-486.86043539,0.00021916,2]
[361861364,1747849642183,-400.07778004,0.00021917,2]
[361861365,1747849642211,-500.0,0.00021917,2]
[361861366,1747849642235,-679.92,0.00021917,2]
[361861367,1747849642257,-430.0,0.00021917,2]
[361861368,1747849642277,-827.58,0.00021917,2]
[361861369,1747849642300,-430.0,0.00021917,2]
[361861370,1747849642321,-430.0,0.00021917,2]
[361861371,1747849642342,-430.0,0.00021917,2]
[361861372,1747849642364,-430.0,0.00021917,2]
[361861373,1747849642386,-430.0,0.00021917,2]
[361861374,1747849642408,-500.0,0.00021917,2]
[361861375,1747849642430,-430.0,0.00021917,2]
[361861376,1747849642459,-334.54591886,0.00021917,2]
[361861377,1747849642480,-430.0,0.00021917,2]
[361861378,1747849642503,-498.27,0.00021917,2]
[361861379,1747849642525,-8975.75,0.00021917,2]
[361861380,1747849642551,-479.33,0.00021917,2]
[361861381,1747849642572,-430.0,0.00021917,2]
[361861382,1747849642594,-430.0,0.00021917,2]
[361861383,1747849642614,-430.0,0.00021917,2]
[361861384,1747849642635,-430.41481265,0.00021917,2]
[361861385,1747849642656,-430.0,0.00021917,2]
[361861386,1747849642678,-430.0,0.00021917,2]
[361861387,1747849642703,-532.69431911,0.00021917,2]
[361861388,1747849642726,-430.0,0.00021917,2]
[361861389,1747849642748,-430.0,0.00021917,2]
[361861390,1747849642770,-430.0,0.00021917,2]
[361861391,1747849642792,-430.0,0.00021917,2]
[361861392,1747849642815,-430.0,0.00021917,2]
[361861393,1747849642836,-430.0,0.00021917,2]
[361861394,1747849642860,-430.0,0.00021917,2]
[361861395,1747849642882,-338.69550036,0.00021917,2]
[361861396,1747849642903,-320.0,0.00021917,2]
[361861397,1747849642924,-322.1760786,0.00021917,2]
[361861398,1747849642952,-430.0,0.00021917,2]
[361861399,1747849642974,-430.0,0.00021917,2]
[361861400,1747849642996,-360.0,0.00021917,2]
[361861401,1747849643018,-430.0,0.00021917,2]
[361861402,1747849643040,-430.0,0.00021917,2]
[361861403,1747849643062,-430.0,0.00021917,2]
[361861404,1747849643087,-430.0,0.00021917,2]
[361861405,1747849643109,-430.0,0.00021917,2]
[361861406,1747849643130,-456.25993236,0.00021917,2]
[361861407,1747849643153,-430.0,0.00021917,2]
[361861408,1747849643176,-430.0,0.00021917,2]
[361861409,1747849643204,-370.43095344,0.00021917,2]
[361861410,1747849643228,-361.18465459,0.00021917,2]
[361861411,1747849643253,-430.0,0.00021917,2]
[361861412,1747849643276,-430.0,0.00021917,2]
[361861413,1747849643298,-430.0,0.00021917,2]
[361861414,1747849643321,-430.0,0.00021917,2]
[361861415,1747849643343,-1004.80827646,0.00021917,2]
[361861416,1747849643364,-430.0,0.00021917,2]
[361861417,1747849643388,-355.79909247,0.00021934,6]
[361861418,1747849643410,-9209.87411855,0.00022,2]
[361861419,1747849643436,-355.79909247,0.00022107,6]
[361861420,1747849643462,-679.92,0.00022191,2]
[361861421,1747849643485,-430.0,0.00022191,2]
[361861422,1747849643507,-827.58,0.00022191,2]
[361861423,1747849643530,-500.0,0.00022191,2]
[361861424,1747849643552,-8975.75,0.00022191,2]
[361861425,1747849643574,-430.0,0.00022191,2]
[361861426,1747849643597,-430.0,0.00022191,2]
[361861427,1747849643619,-242.12,0.00022191,2]
[361861428,1747849643642,-430.0,0.00022191,2]
[361861429,1747849643665,-430.0,0.00022191,2]
[361861430,1747849643688,-430.0,0.00022191,2]
[361861431,1747849643715,-430.0,0.00022191,2]
[361861432,1747849643738,-430.0,0.00022191,2]
[361861433,1747849643760,-430.0,0.00022191,2]
[361861434,1747849643783,-161.79,0.00022191,2]
[361861435,1747849643810,-355.79909247,0.00022279,6]
[361861436,1747849643832,-300.0,0.0002241,2]
[361861437,1747849643857,-355.79909247,0.00022452,7]
[361861438,1747849643878,-500.0,0.00022465,2]
[361861439,1747849643899,-679.92,0.00022465,2]
[361861440,1747849643922,-430.0,0.00022465,2]
[361861441,1747849643943,-827.58,0.00022465,2]
[361861442,1747849643970,-500.0,0.00022465,2]
[361861443,1747849643991,-8975.75,0.00022465,2]
[361861444,1747849644013,-430.0,0.00022465,2]
[361861445,1747849644035,-430.0,0.00022465,2]
[361861446,1747849644059,-430.0,0.00022465,2]
[361861447,1747849644082,-430.0,0.00022465,2]
[361861448,1747849644120,-430.0,0.00022465,2]
[361861449,1747849644145,-430.0,0.00022465,2]
[361861450,1747849644171,-430.0,0.00022465,2]
[361861451,1747849644199,-430.0,0.00022465,2]
[361861452,1747849644226,-355.79909247,0.00022624,7]
[361861453,1747849644250,-679.92,0.00022739,2]
[361861454,1747849644275,-430.0,0.00022739,2]
[361861455,1747849644300,-827.58,0.00022739,2]
[361861456,1747849644324,-500.0,0.00022739,2]
[361861457,1747849644522,-8975.75,0.00022739,2]
[361861458,1747849644546,-430.0,0.00022739,2]
[361861459,1747849644570,-458.63022686,0.00022739,2]
[361861460,1747849644594,-430.0,0.00022739,2]
[361861461,1747849644618,-430.0,0.00022739,2]
[361861462,1747849644641,-430.0,0.00022739,2]
[361861463,1747849644664,-430.0,0.00022739,2]
[361861464,1747849644688,-430.0,0.00022739,2]
[361861465,1747849644718,-430.0,0.00022739,2]
[361861466,1747849644749,-355.79909247,0.00022797,7]
[361861467,1747849644775,-355.79909247,0.00022969,8]
[361861468,1747849644800,-1166.67,0.00023,2]
[361861469,1747849644821,-500.0,0.00023013,2]
[361861470,1747849644843,-679.92,0.00023013,2]
[361861471,1747849644866,-430.0,0.00023013,2]
[361861472,1747849644889,-827.58,0.00023013,2]
[361861473,1747849644912,-500.0,0.00023013,2]
[361861474,1747849644935,-8975.75,0.00023013,2]
[361861475,1747849644964,-575.8,0.00023013,2]
[361861476,1747849644991,-430.0,0.00023013,2]
[361861477,1747849645016,-430.0,0.00023013,2]
[361861478,1747849645041,-430.0,0.00023013,2]
[361861479,1747849645067,-430.0,0.00023013,2]
[361861480,1747849645091,-430.0,0.00023013,2]
[361861481,1747849645115,-430.0,0.00023013,2]
[361861482,1747849645138,-500.0,0.00023121,2]
[361861483,1747849645170,-355.79909247,0.00023141,8]
[361861484,1747849645201,-679.92,0.00023287,2]
[361861485,1747849645226,-556.31262963,0.00023287,2]
[361861486,1747849645251,-827.58,0.00023287,2]
[361861487,1747849645280,-154.92942376,0.00023287,2]
[361861488,1747849645306,-854.33318365,0.00023287,2]
[361861559,1747849832720,-500.0,0.00021808,2]
[361861561,1747849832730,-430.0,0.00021917,2]
[361861563,1747849832739,-430.0,0.00021917,2]
[361861565,1747849832749,-509.94,0.00021917,2]
[361861567,1747849832759,-430.0,0.00021917,2]
[361861569,1747849832768,-430.0,0.00021917,2]
[361861572,1747849832778,-422.71322487,0.00021917,2]
[361861575,1747849832788,-160.0,0.00021917,2]
[361861578,1747849832797,-430.0,0.00021917,2]
[361861580,1747849832807,-430.0,0.00021917,2]
[361861582,1747849832816,-160.0,0.00021917,2]
[361861584,1747849832826,-430.0,0.00021917,2]
[361861586,1747849832837,-430.0,0.00022191,2]
[361861588,1747849832846,-430.0,0.00022191,2]
[361861590,1747849832856,-509.94,0.00022191,2]
[361861592,1747849832865,-430.0,0.00022191,2]
[361861594,1747849832875,-430.0,0.00022191,2]
[361861596,1747849832884,-430.0,0.00022191,2]
[361861598,1747849832894,-430.0,0.00022191,2]
[361861600,1747849832904,-430.0,0.00022191,2]
[361861602,1747849832913,-430.0,0.00022465,2]
[361861604,1747849832922,-430.0,0.00022465,2]
[361861606,1747849832931,-509.94,0.00022465,2]
[361861608,1747849832941,-430.0,0.00022465,2]
[361861610,1747849832950,-430.0,0.00022465,2]
[361861611,1747849832960,-430.0,0.00022465,2]
[361861614,1747849832969,-430.0,0.00022465,2]
[361861616,1747849832979,-430.0,0.00022739,2]
[361861618,1747849832990,-430.0,0.00022739,2]
[361861620,1747849832999,-509.94,0.00022739,2]
[361861622,1747849833009,-421.68000001,0.00022739,2]
[361861624,1747849833019,-430.0,0.00022739,2]
[361861626,1747849833030,-430.0,0.00022739,2]
[361861628,1747849833040,-430.0,0.00022739,2]
[361861630,1747849833050,-203.31376728,0.000229,8]
[361861632,1747849833061,-500.0,0.00023,30]
[361861634,1747849833072,-1050.01,0.00023,2]
[361861636,1747849833085,-203.31376712,0.00023011,8]
[361861638,1747849833097,-430.0,0.00023013,2]
[361861640,1747849833108,-430.0,0.00023013,2]
[361861642,1747849833119,-509.94,0.00023013,2]
[361861644,1747849833129,-430.0,0.00023013,2]
[361861646,1747849833140,-430.0,0.00023013,2]
[361861648,1747849833151,-430.0,0.00023013,2]
[361861650,1747849833163,-5000.0,0.00023054,2]
[361861652,1747849833173,-203.31376712,0.00023122,8]
[361861654,1747849833184,-203.31376712,0.00023233,8]
[361861656,1747849833195,-8121.41681635,0.00023287,2]
[361861658,1747849833209,-430.0,0.00023287,2]
[361861660,1747849833220,-430.0,0.00023287,2]
[361861661,1747849833231,-430.0,0.00023287,2]
[361861662,1747849833245,-463.75281505,0.00023287,2]
[361861663,1747849833256,-509.94,0.00023287,2]
[361861664,1747849833268,-465.59,0.00023287,2]
[361861665,1747849833279,-430.0,0.00023287,2]
[361861666,1747849833289,-7246.4,0.00023287,2]
[361861667,1747849833300,-430.0,0.00023287,2]
[361861668,1747849833310,-9822.71491065,0.00023287,2]
[361861669,1747849833345,-13260.02236786,0.00023287,2]
[361861670,1747849833358,-26917.26272149,0.00023287,2]
[361861671,1747849833369,-203.31376712,0.00023344,9]
[361861672,1747849833379,-203.31376712,0.00023456,9]
[361861673,1747849833391,-500.0,0.0002356,2]
[361861674,1747849833402,-271.6241722,0.0002356,2]
[361861675,1747849833413,-190.80230477,0.0002356,2]
[361861676,1747849833424,-500.0,0.00023561,2]
[361861677,1747849833434,-827.58,0.00023561,2]
[361861678,1747849833445,-8975.75,0.00023561,2]
[361861679,1747849833456,-430.0,0.00023561,2]
[361861680,1747849833467,-430.0,0.00023561,2]
[361861681,1747849833480,-430.0,0.00023561,2]
[361861682,1747849833490,-509.94,0.00023561,2]
[361861683,1747849833500,-430.0,0.00023561,2]
[361861685,1747849833510,-430.0,0.00023561,2]
[361861686,1747849833520,-203.31376712,0.00023567,9]
[361861687,1747849833531,-203.31376712,0.00023678,9]
[361861688,1747849833541,-200.0,0.00023687,2]
[361861690,1747849833550,-203.31376712,0.00023789,9]
[361861692,1747849833560,-207.4,0.00023827,2]
[361861694,1747849833570,-827.58,0.00023835,2]
[361861695,1747849833580,-8975.75,0.00023835,2]
[361861697,1747849833597,-430.0,0.00023835,2]
[361861699,1747849833608,-430.0,0.00023835,2]
[361861701,1747849833618,-430.0,0.00023835,2]
[361861703,1747849833628,-509.94,0.00023835,2]
[361861705,1747849833639,-430.0,0.00023835,2]
[361861706,1747849833650,-430.0,0.00023835,2]
[361861708,1747849833660,-203.31376712,0.000239,10]
[361861709,1747849833670,-500.0,0.00024,2]
[361861711,1747849833681,-203.31376712,0.00024011,10]
[361861712,1747849833690,-500.0,0.00024109,2]
[361861714,1747849833700,-827.58,0.00024109,2]
[361861716,1747849833711,-8975.75,0.00024109,2]
[361861717,1747849833721,-430.0,0.00024109,2]
[361861719,1747849833731,-430.0,0.00024109,2]
[361861721,1747849833742,-430.0,0.00024109,2]
[361861723,1747849833752,-509.94,0.00024109,2]
[361861724,1747849833761,-280.08,0.00024109,2]
[361861725,1747849833776,-178.86,0.00024109,2]
[361861726,1747849833786,-203.31376712,0.00024122,10]
[361861727,1747849833796,-203.31376712,0.00024233,10]
[361861728,1747849833806,-960.0,0.0002426,2]
[361861729,1747849833816,-150.0,0.0002426,2]
[361861730,1747849833826,-203.31376712,0.00024344,11]
[361861731,1747849833843,-827.58,0.00024383,2]
[361861732,1747849833854,-8975.75,0.00024383,2]
[361861733,1747849833864,-430.0,0.00024383,2]
[361861734,1747849833874,-430.0,0.00024383,2]
[361861735,1747849833884,-430.0,0.00024383,2]
[361861736,1747849833894,-509.94,0.00024383,2]
[361861737,1747849833905,-203.31376712,0.00024456,11]
[361861738,1747849833914,-200.0,0.00024467,120]
[361861739,1747849833924,-203.31376712,0.00024567,11]
[361861740,1747849833934,-500.0,0.00024657,2]
[361861741,1747849833943,-827.58,0.00024657,2]
[361861742,1747849833954,-8975.75,0.00024657,2]
[361861743,1747849833963,-430.0,0.00024657,2]
[361861744,1747849833975,-430.0,0.00024657,2]
[361861745,1747849833986,-430.0,0.00024657,2]
[361861746,1747849833996,-509.94,0.00024657,2]
[361861747,1747849834006,-151.0,0.00024658,2]
[361861748,1747849834016,-151.0,0.00024658,2]
[361861749,1747849834026,-151.0,0.00024658,2]
[361861750,1747849834036,-500.0,0.00024658,2]
[361861751,1747849834047,-500.0,0.00024658,2]
[361861752,1747849834058,-500.0,0.00024658,2]
[361861753,1747849834068,-500.0,0.00024658,2]
[361861754,1747849834078,-200.0,0.00024676,120]
[361861755,1747849834094,-203.31376712,0.00024678,11]
[361861756,1747849834105,-151.0,0.00024685,2]
[361861757,1747849834115,-151.0,0.00024685,2]
[361861758,1747849834125,-6668.11,0.000247,7]
[361861759,1747849834135,-203.31376712,0.00024789,11]
[361861760,1747849834146,-7021.74,0.000248,7]
[361861761,1747849834156,-5194.32082635,0.000248,2]
[361861762,1747849834167,-160.0,0.000248,7]
[361861763,1747849834178,-1481.89001656,0.00024821,2]
[361861764,1747849834188,-647122.495446,0.000249,2]
[361861765,1747849834200,-203.31376712,0.000249,12]
[361861766,1747849834210,-1731.44027545,0.00024921,2]
[361861767,1747849834222,-827.58,0.00024931,2]
[361861768,1747849834233,-8975.75,0.00024931,2]
[361861769,1747849834245,-163.37,0.00024931,2]
[361861770,1747849834257,-430.0,0.00024931,2]
[361861771,1747849834269,-430.0,0.00024931,2]
[361861772,1747849834279,-509.94,0.00024931,2]
[361861773,1747849834289,-161.133461,0.00025095,4]
[361861774,1747849834300,-500.0,0.00025205,30]
[361861775,1747849834311,-827.58,0.00025205,2]
[361861776,1747849834322,-8975.75,0.00025205,2]
[361861777,1747849834334,-430.0,0.00025205,2]
[361861778,1747849834345,-430.0,0.00025205,2]
[361861779,1747849834357,-509.94,0.00025205,2]
[361861780,1747849834367,-762.96,0.000253,31]
[361861781,1747849834379,-762.96,0.000253,31]
[361861782,1747849834389,-762.96,0.000253,31]
[361861783,1747849834400,-762.96,0.000253,31]